[Event "*** SCC Grand Prix: Titled Tuesday Blitz"]
[Site "Chess.com"]
[Date "2020.06.02"]
[Round "5"]
[White "OK97"]
[Black "Haykoooo0o"]
[Result "1-0"]
[WhiteElo "2765"]
[BlackElo "2563"]
[TimeControl "180+1"]
[EndTime "10:59:32 PDT"]
[Termination "OK97 won by checkmate"]

1. e4 {[%clk 0:03:00.9]} 1... e5 {[%clk 0:02:53.3]} 2. Nf3 {[%clk 0:03:01.1]}
2... Nc6 {[%clk 0:02:52.7]} 3. Bb5 {[%clk 0:03:01.6]} 3... Nf6 {[%clk
0:02:48.8]} 4. O-O {[%clk 0:03:01.3]} 4... Nxe4 {[%clk 0:02:47.5]} 5. d4 {[%clk
0:03:00.8]} 5... Nd6 {[%clk 0:02:47.7]} 6. dxe5 {[%clk 0:03:00.6]} 6... Nxb5
{[%clk 0:02:47.4]} 7. a4 {[%clk 0:03:01.2]} 7... Nbd4 {[%clk 0:02:48]} 8. Nxd4
{[%clk 0:03:01.4]} 8... Nxd4 {[%clk 0:02:48.9]} 9. Qxd4 {[%clk 0:03:01.9]} 9...
d5 {[%clk 0:02:49.6]} 10. Qd3 {[%clk 0:03:02.1]} 10... c6 {[%clk 0:02:42.4]} 11.
a5 {[%clk 0:03:02.2]} 11... Be7 {[%clk 0:02:39.7]} 12. Qg3 {[%clk 0:02:56.3]}
12... g6 {[%clk 0:02:30.8]} 13. Bh6 {[%clk 0:02:47.9]} 13... Bf5 {[%clk
0:02:24.6]} 14. Nd2 {[%clk 0:02:39]} 14... Bh4 {[%clk 0:02:19.8]} 15. Qc3 {[%clk
0:02:33]} 15... d4 {[%clk 0:01:59.9]} 16. Qb3 {[%clk 0:02:22.8]} 16... Bg5
{[%clk 0:01:45]} 17. Bxg5 {[%clk 0:02:16]} 17... Qxg5 {[%clk 0:01:44.4]} 18. Nf3
{[%clk 0:02:16]} 18... Qf4 {[%clk 0:01:38.5]} 19. Qb4 {[%clk 0:01:42.2]} 19...
O-O-O {[%clk 0:01:13.3]} 20. c3 {[%clk 0:01:42.1]} 20... Be4 {[%clk 0:00:58.6]}
21. Nxd4 {[%clk 0:01:40.5]} 21... Qxe5 {[%clk 0:00:57.7]} 22. a6 {[%clk
0:01:04.8]} 22... c5 {[%clk 0:00:43.6]} 23. axb7+ {[%clk 0:00:59.6]} 23... Bxb7
{[%clk 0:00:32.7]} 24. Qc4 {[%clk 0:00:49]} 24... Qd5 {[%clk 0:00:32.6]} 25.
Qxd5 {[%clk 0:00:48]} 25... Bxd5 {[%clk 0:00:33.5]} 26. Nc2 {[%clk 0:00:39.6]}
26... Kb7 {[%clk 0:00:32.4]} 27. Ra5 {[%clk 0:00:37]} 27... Kb6 {[%clk 0:00:20]}
28. Rfa1 {[%clk 0:00:35.5]} 28... Bb7 {[%clk 0:00:11.4]} 29. Ne3 {[%clk
0:00:31.1]} 29... a6 {[%clk 0:00:11.4]} 30. Nc4+ {[%clk 0:00:29.9]} 30... Kc7
{[%clk 0:00:10.5]} 31. Rxc5+ {[%clk 0:00:29.5]} 31... Kb8 {[%clk 0:00:11]} 32.
f3 {[%clk 0:00:24.6]} 32... Rhe8 {[%clk 0:00:09.1]} 33. Kf2 {[%clk 0:00:25.1]}
33... Re7 {[%clk 0:00:05.6]} 34. Re1 {[%clk 0:00:24.3]} 34... Rxe1 {[%clk
0:00:05.1]} 35. Kxe1 {[%clk 0:00:25.2]} 35... h5 {[%clk 0:00:04.7]} 36. h4
{[%clk 0:00:21.9]} 36... Re8+ {[%clk 0:00:04.7]} 37. Kf1 {[%clk 0:00:22]} 37...
Rd8 {[%clk 0:00:05.2]} 38. Ke1 {[%clk 0:00:20.4]} 38... Re8+ {[%clk 0:00:05.3]}
39. Kf2 {[%clk 0:00:20.9]} 39... Rd8 {[%clk 0:00:05.7]} 40. Ke3 {[%clk
0:00:19.9]} 40... Re8+ {[%clk 0:00:05.5]} 41. Re5 {[%clk 0:00:20.1]} 41... Rc8
{[%clk 0:00:05.3]} 42. Nd6 {[%clk 0:00:19.1]} 42... Rc7 {[%clk 0:00:05.7]} 43.
Re8+ {[%clk 0:00:16.8]} 43... Ka7 {[%clk 0:00:06.1]} 44. Rf8 {[%clk 0:00:14.4]}
44... Bd5 {[%clk 0:00:06.5]} 45. Kd4 {[%clk 0:00:14.2]} 45... Be6 {[%clk
0:00:07]} 46. c4 {[%clk 0:00:12.2]} 46... Kb6 {[%clk 0:00:05.7]} 47. b4 {[%clk
0:00:11.3]} 47... Kc6 {[%clk 0:00:05.5]} 48. c5 {[%clk 0:00:11.7]} 48... a5
{[%clk 0:00:02.7]} 49. b5+ {[%clk 0:00:11.8]} 49... Kd7 {[%clk 0:00:03.3]} 50.
b6 {[%clk 0:00:12.1]} 50... Ke7 {[%clk 0:00:01.9]} 51. Ra8 {[%clk 0:00:10]}
51... Rd7 {[%clk 0:00:01.9]} 52. b7 {[%clk 0:00:09.3]} 52... Rc7 {[%clk
0:00:01.7]} 53. b8=Q {[%clk 0:00:09]} 53... Rd7 {[%clk 0:00:02.6]} 54. Qf8+
{[%clk 0:00:07.2]} 54... Kf6 {[%clk 0:00:03.5]} 55. Qh8+ {[%clk 0:00:07]} 55...
Ke7 {[%clk 0:00:02.8]} 56. Re8# {[%clk 0:00:07]} 1-0

[Event "*** SCC Grand Prix: Titled Tuesday Blitz"]
[Site "Chess.com"]
[Date "2020.06.02"]
[Round "5"]
[White "ShahMatKanal"]
[Black "Chuchofrio1"]
[Result "1-0"]
[WhiteElo "2470"]
[BlackElo "2273"]
[TimeControl "180+1"]
[EndTime "10:59:33 PDT"]
[Termination "ShahMatKanal won on time"]

1. e4 {[%clk 0:03:00.9]} 1... c5 {[%clk 0:02:59.3]} 2. d4 {[%clk 0:02:58.8]}
2... cxd4 {[%clk 0:02:57.8]} 3. c3 {[%clk 0:02:58.4]} 3... e5 {[%clk 0:02:57.5]}
4. cxd4 {[%clk 0:02:56.6]} 4... exd4 {[%clk 0:02:57.4]} 5. Nf3 {[%clk
0:02:53.9]} 5... Nc6 {[%clk 0:02:56.5]} 6. Nxd4 {[%clk 0:02:52.7]} 6... Nf6
{[%clk 0:02:53.4]} 7. Nc3 {[%clk 0:02:47.9]} 7... Bb4 {[%clk 0:02:52.9]} 8. Nxc6
{[%clk 0:02:37.2]} 8... dxc6 {[%clk 0:02:52.6]} 9. Qxd8+ {[%clk 0:02:34.7]} 9...
Kxd8 {[%clk 0:02:52.4]} 10. Bg5 {[%clk 0:02:34.8]} 10... h6 {[%clk 0:02:51.9]}
11. O-O-O+ {[%clk 0:02:28.1]} 11... Ke7 {[%clk 0:02:40.5]} 12. Bh4 {[%clk
0:02:07.6]} 12... g5 {[%clk 0:02:26]} 13. Bg3 {[%clk 0:02:06.8]} 13... Be6
{[%clk 0:02:13.2]} 14. Bd3 {[%clk 0:01:24.7]} 14... Nh5 {[%clk 0:01:59.4]} 15.
Kc2 {[%clk 0:00:45.4]} 15... Nxg3 {[%clk 0:01:53.2]} 16. hxg3 {[%clk 0:00:45.2]}
16... h5 {[%clk 0:01:51.4]} 17. a3 {[%clk 0:00:39.3]} 17... Bc5 {[%clk
0:01:49.4]} 18. f3 {[%clk 0:00:39.5]} 18... Rad8 {[%clk 0:01:48.1]} 19. e5
{[%clk 0:00:28.3]} 19... h4 {[%clk 0:01:13.4]} 20. g4 {[%clk 0:00:25.7]} 20...
Be3 {[%clk 0:00:36]} 21. Ne4 {[%clk 0:00:24]} 21... Rd5 {[%clk 0:00:32.5]} 22.
Bc4 {[%clk 0:00:12.7]} 22... Rc5 {[%clk 0:00:29.4]} 23. Nxc5 {[%clk 0:00:12.2]}
23... Bxc5 {[%clk 0:00:28]} 24. Bxe6 {[%clk 0:00:12]} 24... Kxe6 {[%clk
0:00:28]} 25. b4 {[%clk 0:00:10.6]} 25... Be7 {[%clk 0:00:26.7]} 26. Rhe1 {[%clk
0:00:08.7]} 26... a6 {[%clk 0:00:22.9]} 27. Re2 {[%clk 0:00:08]} 27... h3 {[%clk
0:00:22]} 28. gxh3 {[%clk 0:00:08.9]} 28... Rxh3 {[%clk 0:00:20.7]} 29. Rd3
{[%clk 0:00:09.2]} 29... Rh1 {[%clk 0:00:20.5]} 30. Kb2 {[%clk 0:00:08.6]} 30...
Rf1 {[%clk 0:00:19.7]} 31. Rde3 {[%clk 0:00:07.7]} 31... Rd1 {[%clk 0:00:18.7]}
32. Kc2 {[%clk 0:00:07.2]} 32... Rf1 {[%clk 0:00:18.6]} 33. Rh2 {[%clk
0:00:06.8]} 33... Rg1 {[%clk 0:00:17.5]} 34. Rh8 {[%clk 0:00:06.4]} 34... Rg2+
{[%clk 0:00:17.5]} 35. Kb3 {[%clk 0:00:06.3]} 35... c5 {[%clk 0:00:15.9]} 36.
Rb8 {[%clk 0:00:04.8]} 36... cxb4 {[%clk 0:00:14.3]} 37. axb4 {[%clk 0:00:05.6]}
37... b5 {[%clk 0:00:12.2]} 38. Rb6+ {[%clk 0:00:05.7]} 38... Kd5 {[%clk
0:00:11]} 39. Rxa6 {[%clk 0:00:04]} 39... Kd4 {[%clk 0:00:10.1]} 40. Re4+ {[%clk
0:00:03.8]} 40... Kd5 {[%clk 0:00:09.1]} 41. Ra7 {[%clk 0:00:03.6]} 41... Ke6
{[%clk 0:00:09.3]} 42. Ra6+ {[%clk 0:00:03.3]} 42... Kd5 {[%clk 0:00:08.6]} 43.
Rb6 {[%clk 0:00:03.6]} 43... Rf2 {[%clk 0:00:07.6]} 44. Rxb5+ {[%clk 0:00:03.6]}
44... Kc6 {[%clk 0:00:07.8]} 45. Ra5 {[%clk 0:00:03.7]} 45... Rxf3+ {[%clk
0:00:07.9]} 46. Kc4 {[%clk 0:00:04]} 46... Kb6 {[%clk 0:00:07.9]} 47. Rb5+
{[%clk 0:00:03.3]} 47... Kc6 {[%clk 0:00:08.1]} 48. Ra5 {[%clk 0:00:03.2]} 48...
Kb6 {[%clk 0:00:07.6]} 49. Ra8 {[%clk 0:00:03.4]} 49... Rf1 {[%clk 0:00:05.7]}
50. Re8 {[%clk 0:00:03.1]} 50... Rc1+ {[%clk 0:00:02.1]} 51. Kd3 {[%clk
0:00:03.1]} 51... Rc7 {[%clk 0:00:02.4]} 52. Rd4 {[%clk 0:00:02.4]} 1-0

[Event "*** SCC Grand Prix: Titled Tuesday Blitz"]
[Site "Chess.com"]
[Date "2020.06.02"]
[Round "5"]
[White "Bubachess1608"]
[Black "Juanovic"]
[Result "1-0"]
[WhiteElo "2316"]
[BlackElo "2107"]
[TimeControl "180+1"]
[EndTime "10:59:35 PDT"]
[Termination "Bubachess1608 won by resignation"]

1. e4 {[%clk 0:03:00.9]} 1... c5 {[%clk 0:02:57.7]} 2. d3 {[%clk 0:03:00.2]}
2... Nc6 {[%clk 0:02:55.7]} 3. c3 {[%clk 0:02:59.5]} 3... Nf6 {[%clk 0:02:52.3]}
4. f4 {[%clk 0:02:58.8]} 4... d6 {[%clk 0:02:52.1]} 5. Nf3 {[%clk 0:02:58.4]}
5... g6 {[%clk 0:02:51.4]} 6. g3 {[%clk 0:02:40.9]} 6... Bg7 {[%clk 0:02:51.5]}
7. Bg2 {[%clk 0:02:40]} 7... O-O {[%clk 0:02:51.6]} 8. O-O {[%clk 0:02:39]} 8...
Bg4 {[%clk 0:02:51.7]} 9. h3 {[%clk 0:02:38]} 9... Bxf3 {[%clk 0:02:50.8]} 10.
Qxf3 {[%clk 0:02:37.6]} 10... e6 {[%clk 0:02:51.2]} 11. Be3 {[%clk 0:02:37.1]}
11... Qc7 {[%clk 0:02:46.3]} 12. Nd2 {[%clk 0:02:36.3]} 12... Rac8 {[%clk
0:02:38.8]} 13. Bf2 {[%clk 0:02:35.5]} 13... b6 {[%clk 0:02:37.6]} 14. g4 {[%clk
0:02:35]} 14... d5 {[%clk 0:02:37.3]} 15. e5 {[%clk 0:02:34.4]} 15... Nd7 {[%clk
0:02:37.2]} 16. Bg3 {[%clk 0:02:33.5]} 16... b5 {[%clk 0:02:36.2]} 17. Rae1
{[%clk 0:02:30.4]} 17... a5 {[%clk 0:02:35.8]} 18. Qe2 {[%clk 0:02:22.4]} 18...
a4 {[%clk 0:02:35.2]} 19. Nf3 {[%clk 0:02:21.6]} 19... b4 {[%clk 0:02:27.2]} 20.
c4 {[%clk 0:02:19]} 20... dxc4 {[%clk 0:02:25.2]} 21. dxc4 {[%clk 0:02:18.5]}
21... Nd4 {[%clk 0:02:24.1]} 22. Nxd4 {[%clk 0:02:17.9]} 22... cxd4 {[%clk
0:02:25]} 23. b3 {[%clk 0:02:10.1]} 23... axb3 {[%clk 0:02:24.1]} 24. axb3
{[%clk 0:02:09.5]} 24... Nc5 {[%clk 0:02:21.9]} 25. Qf3 {[%clk 0:02:08.9]} 25...
Rfd8 {[%clk 0:02:14.6]} 26. f5 {[%clk 0:02:08.3]} 26... d3 {[%clk 0:02:13.2]}
27. Bh4 {[%clk 0:01:56.9]} 27... Nxb3 {[%clk 0:01:59.6]} 28. Bxd8 {[%clk
0:01:55.1]} 28... Rxd8 {[%clk 0:01:59.4]} 29. Rd1 {[%clk 0:01:53.9]} 29... Bxe5
{[%clk 0:01:53.8]} 30. Rxd3 {[%clk 0:01:40.7]} 30... Rxd3 {[%clk 0:01:43.7]} 31.
Qxd3 {[%clk 0:01:40.1]} 31... Nc5 {[%clk 0:01:42.3]} 32. Qf3 {[%clk 0:01:32.6]}
32... exf5 {[%clk 0:01:37.5]} 33. gxf5 {[%clk 0:01:31.7]} 33... b3 {[%clk
0:00:38.9]} 34. f6 {[%clk 0:01:20.7]} 34... h5 {[%clk 0:00:38]} 35. Qa8+ {[%clk
0:01:17.7]} 35... Kh7 {[%clk 0:00:35.8]} 36. Qf8 {[%clk 0:01:16.3]} 36... Ne6
{[%clk 0:00:27.4]} 37. Qe7 {[%clk 0:01:10.9]} 37... Nf4 {[%clk 0:00:08.6]} 38.
Qxc7 {[%clk 0:01:00.5]} 38... Bxc7 {[%clk 0:00:09.5]} 39. Rb1 {[%clk 0:01:00.1]}
39... Be5 {[%clk 0:00:06.4]} 40. Rxb3 {[%clk 0:00:59.1]} 40... Bxf6 {[%clk
0:00:06.9]} 41. Kf1 {[%clk 0:00:55.2]} 41... Bd4 {[%clk 0:00:06.5]} 42. Rb7
{[%clk 0:00:51.8]} 42... Kg7 {[%clk 0:00:05.6]} 43. Bd5 {[%clk 0:00:51.1]} 43...
Nxh3 {[%clk 0:00:03.4]} 44. Rxf7+ {[%clk 0:00:49.7]} 44... Kh6 {[%clk
0:00:04.3]} 45. Kg2 {[%clk 0:00:38.7]} 45... Ng5 {[%clk 0:00:03.7]} 46. Rf8
{[%clk 0:00:38]} 46... h4 {[%clk 0:00:03.4]} 47. Rf4 {[%clk 0:00:34.2]} 47...
Be5 {[%clk 0:00:02.7]} 48. Rxh4+ {[%clk 0:00:32.6]} 48... Kg7 {[%clk 0:00:03.6]}
49. Rh1 {[%clk 0:00:30.9]} 49... Kf6 {[%clk 0:00:04]} 50. Re1 {[%clk 0:00:26.7]}
50... Bd6 {[%clk 0:00:03.5]} 51. Re8 {[%clk 0:00:25.1]} 51... Bc5 {[%clk
0:00:03.7]} 52. Rc8 {[%clk 0:00:24.5]} 52... Bd4 {[%clk 0:00:03.7]} 53. c5
{[%clk 0:00:24]} 53... Ke5 {[%clk 0:00:03]} 54. Bf3 {[%clk 0:00:20.8]} 54... Ne6
{[%clk 0:00:03.3]} 55. c6 {[%clk 0:00:19]} 55... Kd6 {[%clk 0:00:03.8]} 56. Rg8
{[%clk 0:00:17.1]} 56... g5 {[%clk 0:00:04.2]} 57. Kh3 {[%clk 0:00:15.9]} 57...
Kc7 {[%clk 0:00:04.2]} 58. Kg4 {[%clk 0:00:15.4]} 58... Kd6 {[%clk 0:00:04.6]}
59. Rg6 {[%clk 0:00:14.7]} 59... Ke7 {[%clk 0:00:03.3]} 60. Bd5 {[%clk
0:00:13.9]} 60... Be5 {[%clk 0:00:03.5]} 1-0

[Event "*** SCC Grand Prix: Titled Tuesday Blitz"]
[Site "Chess.com"]
[Date "2020.06.02"]
[Round "5"]
[White "Tormoz"]
[Black "atwalcb"]
[Result "0-1"]
[WhiteElo "2647"]
[BlackElo "2385"]
[TimeControl "180+1"]
[EndTime "10:59:36 PDT"]
[Termination "atwalcb won on time"]

1. d4 {[%clk 0:03:00.9]} 1... d6 {[%clk 0:02:59.4]} 2. Nf3 {[%clk 0:03:00.5]}
2... Bg4 {[%clk 0:02:57.9]} 3. c4 {[%clk 0:02:51]} 3... Bxf3 {[%clk 0:02:57.4]}
4. exf3 {[%clk 0:02:51.9]} 4... g6 {[%clk 0:02:50.7]} 5. Nc3 {[%clk 0:02:52.1]}
5... Bg7 {[%clk 0:02:50.7]} 6. Be3 {[%clk 0:02:52.7]} 6... Nf6 {[%clk
0:02:50.6]} 7. Be2 {[%clk 0:02:51.1]} 7... O-O {[%clk 0:02:50.7]} 8. O-O {[%clk
0:02:51.2]} 8... c6 {[%clk 0:02:50.3]} 9. d5 {[%clk 0:02:51.4]} 9... Na6 {[%clk
0:02:42.4]} 10. f4 {[%clk 0:02:46.9]} 10... Nc7 {[%clk 0:02:38]} 11. Bf3 {[%clk
0:02:45.8]} 11... c5 {[%clk 0:02:37.8]} 12. g4 {[%clk 0:02:44.3]} 12... a6
{[%clk 0:02:37]} 13. Rc1 {[%clk 0:02:22.9]} 13... b5 {[%clk 0:02:32.4]} 14. b3
{[%clk 0:02:22.9]} 14... Nd7 {[%clk 0:02:25.2]} 15. Be2 {[%clk 0:02:17.3]} 15...
Qb8 {[%clk 0:02:19]} 16. h4 {[%clk 0:02:11.4]} 16... f5 {[%clk 0:01:36.8]} 17.
h5 {[%clk 0:01:58.7]} 17... fxg4 {[%clk 0:01:28.5]} 18. hxg6 {[%clk 0:01:58.6]}
18... hxg6 {[%clk 0:01:28.4]} 19. Bd3 {[%clk 0:01:44.9]} 19... b4 {[%clk
0:00:57.4]} 20. Ne4 {[%clk 0:01:31.1]} 20... Nf6 {[%clk 0:00:47]} 21. Ng5 {[%clk
0:01:17.9]} 21... Qe8 {[%clk 0:00:37.1]} 22. Qc2 {[%clk 0:01:17.5]} 22... e5
{[%clk 0:00:23.7]} 23. Bxg6 {[%clk 0:01:11.9]} 23... Qe7 {[%clk 0:00:23.7]} 24.
f5 {[%clk 0:01:10.9]} 24... Bh6 {[%clk 0:00:17.1]} 25. Qd2 {[%clk 0:01:00.6]}
25... Qg7 {[%clk 0:00:09.3]} 26. Kg2 {[%clk 0:00:54.5]} 26... Bxg5 {[%clk
0:00:08.8]} 27. Bxg5 {[%clk 0:00:55.2]} 27... Ne4 {[%clk 0:00:09.4]} 28. Qe3
{[%clk 0:00:55.2]} 28... Nxg5 {[%clk 0:00:08.8]} 29. Qxg5 {[%clk 0:00:55.1]}
29... Ne8 {[%clk 0:00:06]} 30. Rh1 {[%clk 0:00:49.7]} 30... Nf6 {[%clk
0:00:06.9]} 31. Rh6 {[%clk 0:00:46.4]} 31... Ne4 {[%clk 0:00:03.9]} 32. Qe3
{[%clk 0:00:41.5]} 32... Nf6 {[%clk 0:00:03.3]} 33. Rch1 {[%clk 0:00:41]} 33...
Ra7 {[%clk 0:00:03.3]} 34. Bh5 {[%clk 0:00:22.2]} 34... Nxh5 {[%clk 0:00:02.4]}
35. R1xh5 {[%clk 0:00:22.8]} 35... Rf6 {[%clk 0:00:02]} 36. Rxf6 {[%clk
0:00:20.4]} 36... Qxf6 {[%clk 0:00:02.1]} 37. Qg3 {[%clk 0:00:18.7]} 37... Rg7
{[%clk 0:00:02.5]} 38. Qh2 {[%clk 0:00:18.8]} 38... Kf7 {[%clk 0:00:02.7]} 39.
Qg3 {[%clk 0:00:15.9]} 39... e4 {[%clk 0:00:02.9]} 40. Qf4 {[%clk 0:00:14.4]}
40... Qe5 {[%clk 0:00:03.1]} 41. Qxe5 {[%clk 0:00:13.6]} 41... dxe5 {[%clk
0:00:03.1]} 42. Kg3 {[%clk 0:00:14.3]} 42... Kf6 {[%clk 0:00:03.1]} 43. Rh6+
{[%clk 0:00:14.8]} 43... Kxf5 {[%clk 0:00:03.2]} 44. Rxa6 {[%clk 0:00:15.4]}
44... Rh7 {[%clk 0:00:02.5]} 45. Ra8 {[%clk 0:00:14.7]} 45... Rh3+ {[%clk
0:00:02.5]} 46. Kg2 {[%clk 0:00:14.9]} 46... e3 {[%clk 0:00:03.2]} 47. Rf8+
{[%clk 0:00:14.8]} 47... Ke4 {[%clk 0:00:03.2]} 48. fxe3 {[%clk 0:00:13.7]}
48... Rxe3 {[%clk 0:00:03.5]} 49. Rf2 {[%clk 0:00:13]} 49... Rd3 {[%clk
0:00:04.1]} 50. Re2+ {[%clk 0:00:13]} 50... Kf4 {[%clk 0:00:04.6]} 51. Rf2+
{[%clk 0:00:12.8]} 51... Ke4 {[%clk 0:00:05.1]} 52. Rc2 {[%clk 0:00:11.6]} 52...
Kf4 {[%clk 0:00:05.1]} 53. Re2 {[%clk 0:00:11.5]} 53... e4 {[%clk 0:00:05.3]}
54. Kf2 {[%clk 0:00:11.3]} 54... e3+ {[%clk 0:00:05.5]} 55. Kg2 {[%clk
0:00:11.6]} 55... Rd1 {[%clk 0:00:05.3]} 56. d6 {[%clk 0:00:02.9]} 56... Rxd6
{[%clk 0:00:05.2]} 57. Kf1 {[%clk 0:00:02.4]} 57... Rd1+ {[%clk 0:00:05.1]} 58.
Re1 {[%clk 0:00:02.6]} 58... Rd2 {[%clk 0:00:04.9]} 0-1

[Event "*** SCC Grand Prix: Titled Tuesday Blitz"]
[Site "Chess.com"]
[Date "2020.06.02"]
[Round "5"]
[White "dopolian"]
[Black "XxPetroffsxX"]
[Result "1-0"]
[WhiteElo "2320"]
[BlackElo "2054"]
[TimeControl "180+1"]
[EndTime "10:59:36 PDT"]
[Termination "dopolian won on time"]

1. Nf3 {[%clk 0:03:00.9]} 1... d5 {[%clk 0:02:59]} 2. c4 {[%clk 0:03:00.9]} 2...
e6 {[%clk 0:02:55.6]} 3. g3 {[%clk 0:02:59.8]} 3... Nf6 {[%clk 0:02:55.7]} 4.
Bg2 {[%clk 0:02:59.7]} 4... Be7 {[%clk 0:02:55.9]} 5. O-O {[%clk 0:02:59.4]}
5... O-O {[%clk 0:02:56.1]} 6. b3 {[%clk 0:02:54.9]} 6... a5 {[%clk 0:02:51.1]}
7. a3 {[%clk 0:02:53.6]} 7... a4 {[%clk 0:02:49.8]} 8. b4 {[%clk 0:02:48.6]}
8... dxc4 {[%clk 0:02:49.1]} 9. Qc2 {[%clk 0:02:41.6]} 9... b5 {[%clk
0:02:44.8]} 10. Ne5 {[%clk 0:02:37.1]} 10... Ra6 {[%clk 0:02:39.8]} 11. Nc3
{[%clk 0:02:33.1]} 11... Rb6 {[%clk 0:02:29]} 12. Rd1 {[%clk 0:02:23.3]} 12...
Bb7 {[%clk 0:02:21.1]} 13. Bb2 {[%clk 0:02:17.4]} 13... Bxg2 {[%clk 0:02:19.6]}
14. Kxg2 {[%clk 0:02:18.3]} 14... Nbd7 {[%clk 0:02:16.5]} 15. Nxd7 {[%clk
0:01:55.1]} 15... Nxd7 {[%clk 0:02:09.2]} 16. Ne4 {[%clk 0:01:49.2]} 16... Qa8
{[%clk 0:02:07.9]} 17. f3 {[%clk 0:01:41.3]} 17... f5 {[%clk 0:02:02.6]} 18. Qc3
{[%clk 0:01:10.9]} 18... Nf6 {[%clk 0:01:53.4]} 19. Nf2 {[%clk 0:01:02.8]} 19...
Ne8 {[%clk 0:01:39.5]} 20. Rac1 {[%clk 0:00:54.2]} 20... Bf6 {[%clk 0:01:38.4]}
21. Qc2 {[%clk 0:00:54.5]} 21... Bxb2 {[%clk 0:01:36.2]} 22. Qxb2 {[%clk
0:00:55.4]} 22... Nd6 {[%clk 0:01:26.9]} 23. Qe5 {[%clk 0:00:52.4]} 23... Qd5
{[%clk 0:01:24.8]} 24. Qe3 {[%clk 0:00:51.8]} 24... f4 {[%clk 0:01:19.4]} 25.
gxf4 {[%clk 0:00:51.5]} 25... Nf5 {[%clk 0:01:17.2]} 26. Qe5 {[%clk 0:00:49.9]}
26... Nd4 {[%clk 0:01:11.9]} 27. Qxd5 {[%clk 0:00:41.5]} 27... exd5 {[%clk
0:01:11.1]} 28. e3 {[%clk 0:00:39.1]} 28... Nb3 {[%clk 0:01:01.5]} 29. Rc2
{[%clk 0:00:31.3]} 29... Rg6+ {[%clk 0:01:00]} 30. Kf1 {[%clk 0:00:25.9]} 30...
d4 {[%clk 0:00:58.1]} 31. Ne4 {[%clk 0:00:18.3]} 31... d3 {[%clk 0:00:52.6]} 32.
Rc3 {[%clk 0:00:16.8]} 32... Rf5 {[%clk 0:00:48.2]} 33. Ng3 {[%clk 0:00:14.7]}
33... Rf8 {[%clk 0:00:43.1]} 34. f5 {[%clk 0:00:13.3]} 34... Rh6 {[%clk
0:00:40.6]} 35. Kg2 {[%clk 0:00:12.5]} 35... g6 {[%clk 0:00:36.5]} 36. e4 {[%clk
0:00:10.5]} 36... gxf5 {[%clk 0:00:33.7]} 37. Nxf5 {[%clk 0:00:11.4]} 37... Rg6+
{[%clk 0:00:32.5]} 38. Kf2 {[%clk 0:00:11.1]} 38... Kf7 {[%clk 0:00:27.9]} 39.
Ne3 {[%clk 0:00:06.1]} 39... Rfg8 {[%clk 0:00:25.8]} 40. Nd5 {[%clk 0:00:03.1]}
40... Rg2+ {[%clk 0:00:22]} 41. Ke3 {[%clk 0:00:03.4]} 41... Re2+ {[%clk
0:00:21.1]} 42. Kf4 {[%clk 0:00:04]} 42... Ke6 {[%clk 0:00:17.4]} 43. Nxc7+
{[%clk 0:00:03.9]} 43... Kd7 {[%clk 0:00:16.4]} 44. Nxb5 {[%clk 0:00:03.3]}
44... Rf8+ {[%clk 0:00:15.6]} 45. Kg3 {[%clk 0:00:03]} 45... Nxd2 {[%clk
0:00:14.8]} 46. Nd4 {[%clk 0:00:02]} 46... Rg8+ {[%clk 0:00:10.1]} 47. Kf4
{[%clk 0:00:01.9]} 47... Rxh2 {[%clk 0:00:09.5]} 48. Rxd2 {[%clk 0:00:02.2]}
48... Rxd2 {[%clk 0:00:08.5]} 49. Rxc4 {[%clk 0:00:03.1]} 49... Rf8+ {[%clk
0:00:05]} 50. Ke3 {[%clk 0:00:01.6]} 50... Rd1 {[%clk 0:00:04.1]} 51. Rc3 {[%clk
0:00:01.7]} 51... d2 {[%clk 0:00:03.1]} 52. Rd3 {[%clk 0:00:02.4]} 52... Re1+
{[%clk 0:00:02.2]} 53. Kxd2 {[%clk 0:00:02.7]} 1-0